fUSD/lending_fUSD_20240815
["ID","MTS","AMOUNT","RATE_DAILY","PERIOD"]
[334986421,1723711864229,-511.6768429,0.00023835,7]
[334986422,1723711864238,-500.0,0.00023835,7]
[334986423,1723711864248,-504.34025306,0.00023835,7]
[334986424,1723711864257,-500.0,0.00023835,7]
[334986425,1723711864267,-500.0,0.00023835,7]
[334986426,1723711864276,-500.0,0.00023835,7]
[334986427,1723711864285,-341.61784578,0.00023835,7]
[334986428,1723711864295,-500.0,0.00023835,7]
[334986429,1723711864304,-500.0,0.00023835,7]
[334986430,1723711864314,-502.60974017,0.00023835,7]
[334986431,1723711864323,-500.0,0.00023835,7]
[334986432,1723711864332,-500.0,0.00023835,7]
[334986433,1723711864342,-500.0,0.00023835,7]
[334986434,1723711864351,-527.6654645,0.00023835,7]
[334986435,1723711864360,-505.26052774,0.00023835,7]
[334986436,1723711864369,-500.0,0.00023835,7]
[334986437,1723711864379,-524.65361824,0.00023835,7]
[334986438,1723711864388,-500.0,0.00023835,7]
[334986439,1723711864398,-500.0,0.00023835,7]
[334986440,1723711864408,-500.0,0.00023835,7]
[334986441,1723711864417,-502.39671986,0.00023835,7]
[334986442,1723711864426,-500.0,0.00023835,7]
[334986443,1723711864436,-500.0,0.00023835,7]
[334986444,1723711864447,-500.0,0.00023835,7]
[334986445,1723711864456,-498.32905049,0.00023835,7]
[334986446,1723711864465,-500.0,0.00023835,7]
[334986447,1723711864475,-500.0,0.00023835,7]
[334986448,1723711864483,-500.0,0.00023835,7]
[334986449,1723711864492,-500.0,0.00023835,7]
[334986450,1723711864502,-500.0,0.00023835,7]
[334986451,1723711864511,-500.0,0.00023835,7]
[334986452,1723711864520,-500.0,0.00023835,7]
[334986453,1723711864530,-500.0,0.00023835,7]
[334986454,1723711864539,-500.0,0.00023835,7]
[334986455,1723711864548,-500.0,0.00023835,7]
[334986456,1723711864557,-500.0,0.00023835,7]
[334986457,1723711864566,-500.0,0.00023835,7]
[334986458,1723711864575,-500.0,0.00023835,7]
[334986459,1723711864585,-500.0,0.00023835,7]
[334986460,1723711864594,-519.42173243,0.00023835,7]
[334986461,1723711864604,-500.0,0.00023835,7]
[334986462,1723711864613,-500.0,0.00023835,7]
[334986463,1723711864622,-500.0,0.00023835,7]
[334986464,1723711864631,-500.0,0.00023835,7]
[334986465,1723711864640,-500.0,0.00023835,7]
[334986466,1723711864650,-500.0,0.00023835,7]
[334986467,1723711864661,-500.0,0.00023835,7]
[334986468,1723711864670,-500.0,0.00023835,7]
[334986469,1723711864679,-500.0,0.00023835,7]
[334986470,1723711864690,-510.33715771,0.00023835,7]
[334986471,1723711864699,-500.0,0.00023835,7]
[334986472,1723711864708,-517.9549014,0.00023835,7]
[334986473,1723711864718,-542.86895575,0.00023835,7]
[334986474,1723711864727,-507.84623567,0.00023835,7]
[334986475,1723711864737,-500.0,0.00023835,7]
[334986476,1723711864747,-500.0,0.00023835,7]
[334986477,1723711864756,-500.0,0.00023835,7]
[334986478,1723711864765,-500.0,0.00023835,7]
[334986479,1723711864775,-500.0,0.00023835,7]
[334986480,1723711864785,-498.91944478,0.00023835,7]
[334986481,1723711864794,-500.0,0.00023835,7]
[334986482,1723711864804,-500.0,0.00023835,7]
[334986483,1723711864813,-500.0,0.00023835,7]
[334986484,1723711864823,-500.0,0.00023835,7]
[334986485,1723711864833,-500.0,0.00023835,7]
[334986486,1723711864842,-500.0,0.00023835,7]
[334986487,1723711864851,-500.0,0.00023835,7]
[334986488,1723711864861,-500.0,0.00023835,7]
[334986489,1723711864871,-500.0,0.00023835,7]
[334986490,1723711864880,-500.0,0.00023835,7]
[334986491,1723711864889,-501.78845415,0.00023835,7]
[334986492,1723711864899,-500.0,0.00023835,7]
[334986493,1723711864908,-505.25041385,0.00023835,7]
[334986494,1723711864917,-500.0,0.00023835,7]
[334986495,1723711864926,-500.0,0.00023835,7]
[334986496,1723711864935,-500.0,0.00023835,7]
[334986497,1723711864946,-502.84498651,0.00023835,7]
[334986498,1723711864955,-500.0,0.00023835,7]
[334986499,1723711864968,-500.0,0.00023835,7]
[334986500,1723711864977,-544.05941349,0.00023835,7]
[334986501,1723711864986,-505.26925893,0.00023835,7]
[334986502,1723711864996,-500.0,0.00023835,7]
[334986503,1723711865005,-341.57223139,0.00023835,7]
[334986504,1723711865016,-500.0,0.00023835,7]
[334986505,1723711865025,-500.0,0.00023835,7]
[334986506,1723711865034,-500.0,0.00023835,7]
[334986507,1723711865045,-555.54549848,0.00023835,7]
[334986508,1723711865055,-500.0,0.00023835,7]
[334986509,1723711865064,-500.0,0.00023835,7]
[334986510,1723711865073,-500.0,0.00023835,7]
[334986511,1723711865083,-500.0,0.00023835,7]
[334986512,1723711865092,-500.0,0.00023835,7]
[334986513,1723711865101,-507.86394939,0.00023835,7]
[334986514,1723711865111,-500.0,0.00023835,7]
[334986515,1723711865119,-500.0,0.00023835,7]
[334986516,1723711865129,-500.0,0.00023835,7]
[334986517,1723711865138,-500.0,0.00023835,7]
[334986518,1723711865147,-500.0,0.00023835,7]
[334986519,1723711865156,-500.0,0.00023835,7]
[334986520,1723711865165,-500.0,0.00023835,7]
[334986521,1723711865174,-512.61136697,0.00023835,7]
[334986522,1723711865183,-500.0,0.00023835,7]
[334986523,1723711865194,-500.0,0.00023835,7]
[334986524,1723711865203,-500.0,0.00023835,7]
[334986525,1723711865213,-500.0,0.00023835,7]
[334986526,1723711865221,-500.0,0.00023835,7]
[334986527,1723711865231,-500.0,0.00023835,7]
[334986528,1723711865240,-500.0,0.00023835,7]
[334986529,1723711865249,-500.0,0.00023835,7]
[334986530,1723711865258,-500.0,0.00023835,7]
[334986531,1723711865267,-500.0,0.00023835,7]
[334986532,1723711865276,-552.59174307,0.00023835,7]
[334986533,1723711865286,-247.28263741,0.00023835,7]
[334986534,1723711865295,-500.0,0.00023835,7]
[334986535,1723711865304,-500.0,0.00023835,7]
[334986536,1723711865314,-500.0,0.00023835,7]
[334986537,1723711865323,-500.0,0.00023835,7]
[334986538,1723711865333,-500.0,0.00023835,7]
[334986539,1723711865343,-500.0,0.00023835,7]
[334986540,1723711865352,-500.0,0.00023835,7]
[334986541,1723711865361,-334.57824623,0.00023835,7]
[334986542,1723711865371,-500.73357525,0.00023835,7]
[334986543,1723711865381,-506.94181293,0.00023835,7]
[334986544,1723711865390,-503.31996109,0.00023835,7]
[334986545,1723711865399,-500.0,0.00023835,7]
[334986546,1723711865409,-500.0,0.00023835,7]
[334986547,1723711865418,-1809.24,0.00023835,7]
[334986548,1723711865428,-500.0,0.00023835,7]
[334986549,1723711865437,-1809.24,0.00023835,7]
[334986550,1723711865448,-345.31125622,0.00023835,7]
[334986551,1723711865457,-1809.24,0.00023835,7]
[334986552,1723711865466,-500.0,0.00023835,7]
[334986553,1723711865476,-500.0,0.00023835,7]
[334986554,1723711865485,-513.02905461,0.00023835,7]
[334986555,1723711865495,-500.0,0.00023835,7]
[334986556,1723711865627,-500.0,0.00023835,7]
[334986557,1723711865638,-500.0,0.00023835,7]
[334986558,1723711865647,-1019.67,0.00023835,7]
[334986559,1723711865657,-500.0,0.00023835,7]
[334986560,1723711865667,-1019.67,0.00023835,7]
[334986561,1723711865676,-503.12216758,0.00023835,7]
[334986562,1723711865686,-1019.67,0.00023835,7]
[334986563,1723711865697,-504.81181782,0.00023835,7]
[334986564,1723711865706,-1019.67,0.00023835,7]
[334986565,1723711865716,-920.87,0.00023835,7]
[334986566,1723711865725,-500.0,0.00023835,7]
[334986567,1723711865735,-502.48597345,0.00023835,7]
[334986568,1723711865744,-500.0,0.00023835,7]
[334986569,1723711865753,-920.87,0.00023835,7]
[334986570,1723711865763,-500.92657841,0.00023835,7]
[334986571,1723711865772,-920.87,0.00023835,7]
[334986572,1723711865781,-920.87,0.00023835,7]
[334986573,1723711865790,-336.69003023,0.00023835,7]
[334986574,1723711865800,-500.0,0.00023835,7]
[334986575,1723711865809,-500.0,0.00023835,7]
[334986576,1723711865818,-492.42462801,0.00023835,7]
[334986577,1723711865828,-523.0,0.00023835,7]
[334986578,1723711865837,-500.0,0.00023835,7]
[334986579,1723711865846,-500.90234011,0.00023835,7]
[334986580,1723711865856,-523.0,0.00023835,7]
[334986581,1723711865865,-500.0,0.00023835,7]
[334986582,1723711865875,-523.0,0.00023835,7]
[334986583,1723711865884,-500.0,0.00023835,7]
[334986584,1723711865893,-523.0,0.00023835,7]
[334986585,1723711865902,-523.0,0.00023835,7]
[334986586,1723711865912,-292.21785356,0.00023835,7]
[334986587,1723711865921,-523.0,0.00023835,7]
[334986588,1723711865930,-503.21383099,0.00023835,7]
[334986589,1723711865941,-508.0831671,0.00023835,7]
[334986590,1723711865950,-621.52257471,0.00023835,7]
[334986591,1723711865959,-199.99741255,0.00023835,2]
[334986592,1723711865972,-500.0,0.00023835,7]
[334986593,1723711865982,-500.0,0.00023835,7]
[334986594,1723711865993,-500.0,0.00023835,7]
[334986595,1723711866006,-500.0,0.00023835,7]
[334986596,1723711866016,-503.12733794,0.00023835,7]
[334986597,1723711866026,-500.0,0.00023835,7]
[334986598,1723711866035,-500.0,0.00023835,7]
[334986599,1723711866047,-500.0,0.00023835,7]
[334986600,1723711866056,-500.0,0.00023835,7]
[334986601,1723711866065,-500.0,0.00023835,7]
[334986602,1723711866074,-500.0,0.00023835,7]
[334986603,1723711866083,-500.0,0.00023835,7]
[334986604,1723711866092,-500.0,0.00023835,7]
[334986605,1723711866101,-503.77518162,0.00023835,7]
[334986606,1723711866110,-500.0,0.00023835,7]
[334986607,1723711866119,-500.0,0.00023835,7]
[334986608,1723711866128,-500.0,0.00023835,7]
[334986609,1723711866138,-500.0,0.00023835,7]
[334986610,1723711866147,-153.76959429,0.00023835,7]
[334986611,1723711866157,-508.37855828,0.00023835,7]
[334986612,1723711866166,-500.0,0.00023835,7]
[334986613,1723711866175,-500.0,0.00023835,7]
[334986614,1723711866184,-500.0,0.00023835,7]
[334986615,1723711866193,-500.0,0.00023835,7]
[334986616,1723711866203,-532.52764362,0.00023835,7]
[334986617,1723711866212,-500.0,0.00023835,7]
[334986618,1723711866221,-500.0,0.00023835,7]
[334986619,1723711866230,-500.0,0.00023835,7]
[334986620,1723711866239,-500.0,0.00023835,7]
[334986621,1723711866248,-633.38255731,0.00023835,7]
[334986622,1723711866258,-500.0,0.00023835,7]
[334986623,1723711866267,-501.61674871,0.00023835,7]
[334986624,1723711866277,-500.0,0.00023835,7]
[334986625,1723711866286,-503.30494928,0.00023835,7]
[334986626,1723711866295,-500.0,0.00023835,7]
[334986627,1723711866305,-551.52,0.00023835,7]
[334986628,1723711866314,-551.52,0.00023835,7]
[334986629,1723711866324,-500.0,0.00023835,7]
[334986630,1723711866333,-500.0,0.00023835,7]
[334986631,1723711866342,-500.0,0.00023835,7]
[334986632,1723711866351,-500.0,0.00023835,7]
[334986633,1723711866361,-503.11829458,0.00023835,7]
[334986634,1723711866370,-500.0,0.00023835,7]
[334986635,1723711866379,-504.17691448,0.00023835,7]
[334986636,1723711866388,-500.0,0.00023835,7]
[334986637,1723711866398,-588.24,0.00023835,7]
[334986638,1723711866407,-500.0,0.00023835,7]
[334986639,1723711866416,-936.26,0.00023835,2]
[334986640,1723711866425,-373.64943432,0.00023835,7]
[334986641,1723711866434,-500.0,0.00023835,7]
[334986642,1723711866445,-588.24,0.00023835,7]
[334986643,1723711866454,-936.26,0.00023835,2]
[334986644,1723711866463,-500.0,0.00023835,7]
[334986645,1723711866472,-150.44579378,0.00023835,7]
[334986646,1723711866481,-588.24,0.00023835,7]
[334986647,1723711866490,-509.59116319,0.00023835,7]
[334986648,1723711866499,-936.26,0.00023835,2]
[334986649,1723711866508,-588.24,0.00023835,7]
[334986650,1723711866517,-936.26,0.00023835,2]
[334986651,1723711866525,-936.26,0.00023835,2]
[334986652,1723711866534,-588.24,0.00023835,7]
[334986653,1723711866543,-502.2119401,0.00023835,7]
[334986654,1723711866552,-509.80708294,0.00023835,7]
[334986655,1723711866562,-503.66091524,0.00023835,7]
[334986656,1723711866571,-706.73,0.00023835,7]
[334986657,1723711866580,-706.73,0.00023835,7]
[334986658,1723711866589,-706.73,0.00023835,7]
[334986659,1723711866598,-536.82493978,0.00023835,7]
[334986660,1723711866607,-523.45957669,0.00023835,7]
[334986661,1723711866616,-500.0,0.00023835,7]
[334986662,1723711866630,-500.93239207,0.00023835,7]
[334986663,1723711866640,-500.0,0.00023835,7]
[334986664,1723711866649,-508.41380063,0.00023835,7]
[334986665,1723711866661,-738.9,0.00023835,7]
[334986666,1723711866671,-738.9,0.00023835,7]
[334986667,1723711866681,-500.0,0.00023835,7]
[334986668,1723711866691,-738.9,0.00023835,7]
[334986669,1723711866701,-2954.81,0.00023835,7]
[334986670,1723711866711,-500.0,0.00023835,7]
[334986671,1723711866720,-2954.81,0.00023835,7]
[334986672,1723711866730,-500.0,0.00023835,7]
[334986673,1723711866740,-2954.81,0.00023835,7]
[334986674,1723711866749,-500.0,0.00023835,7]
[334986675,1723711866759,-738.9,0.00023835,7]
[334986676,1723711866768,-516.90249968,0.00023835,7]
[334986677,1723711866778,-500.0,0.00023835,7]
[334986678,1723711866788,-2954.81,0.00023835,7]
[334986679,1723711866798,-500.0,0.00023835,7]
[334986680,1723711866807,-738.9,0.00023835,7]
[334986681,1723711866817,-2954.81,0.00023835,7]
[334986682,1723711866826,-523.26708235,0.00023835,7]
[334986683,1723711866836,-505.5248055,0.00023835,7]
[334986684,1723711866846,-2954.81,0.00023835,7]
[334986685,1723711866856,-500.0,0.00023835,7]
[334986686,1723711866867,-500.0,0.00023835,7]
[334986687,1723711866877,-539.82,0.00023835,7]
[334986688,1723711866887,-500.0,0.00023835,7]
[334986689,1723711866897,-539.82,0.00023835,7]
[334986690,1723711866907,-500.0,0.00023835,7]
[334986691,1723711866917,-506.6456254,0.00023835,7]
[334986692,1723711866927,-502.37813828,0.00023835,7]
[334986693,1723711866938,-500.0,0.00023835,7]
[334986694,1723711866948,-500.0,0.00023835,7]
[334986695,1723711866958,-500.0,0.00023835,7]
[334986696,1723711866972,-508.38508116,0.00023835,7]
[334986697,1723711866982,-500.0,0.00023835,7]
[334986698,1723711866991,-495.96246117,0.00023835,7]
[334986699,1723711867001,-500.0,0.00023835,7]
[334986700,1723711867011,-500.0,0.00023835,7]
[334986701,1723711867020,-500.0,0.00023835,7]
[334986702,1723711867030,-500.0,0.00023835,7]
[334986703,1723711867041,-500.0,0.00023835,7]
[334986704,1723711867052,-500.0,0.00023835,7]
[334986705,1723711867061,-518.91197033,0.00023835,7]
[334986706,1723711867071,-500.0,0.00023835,7]
[334986707,1723711867080,-506.07,0.00023835,7]
[334986708,1723711867095,-500.0,0.00023835,7]
[334986709,1723711867104,-500.0,0.00023835,7]
[334986710,1723711867114,-500.0,0.00023835,7]
[334986711,1723711867124,-500.0,0.00023835,7]
[334986712,1723711867134,-500.0,0.00023835,7]
[334986713,1723711867143,-500.0,0.00023835,7]
[334986714,1723711867152,-500.0,0.00023835,7]
[334986715,1723711867162,-500.0,0.00023835,7]
[334986716,1723711867172,-517.29694804,0.00023835,7]
[334986717,1723711867181,-592.08113712,0.00023835,7]
[334986718,1723711867193,-500.0,0.00023835,7]
[334986719,1723711867202,-500.0,0.00023835,7]
[334986720,1723711867211,-500.0,0.00023835,7]
[334986721,1723711867220,-500.0,0.00023835,7]
[334986722,1723711867230,-500.0,0.00023835,7]
[334986723,1723711867239,-500.0,0.00023835,7]
[334986724,1723711867249,-500.0,0.00023835,7]
[334986725,1723711867259,-500.0,0.00023835,7]
[334986726,1723711867268,-500.0,0.00023835,7]
[334986727,1723711867278,-500.0,0.00023835,7]
[334986728,1723711867287,-500.0,0.00023835,7]
[334986729,1723711867297,-460.26348153,0.00023835,7]
[334986730,1723711867307,-500.0,0.00023835,7]
[334986731,1723711867316,-513.55884521,0.00023835,7]
[334986732,1723711867326,-496.46008531,0.00023835,7]
[334986733,1723711867336,-500.0,0.00023835,7]
[334986734,1723711867346,-901.76998133,0.00023891,2]
[334986735,1723711867356,-2000.0,0.000239,2]
[334986736,1723711867367,-2000.0,0.0002391,2]
[334986737,1723711867378,-166.38,0.00023915,2]
[334986738,1723711867388,-500.0,0.00023916,7]
[334986739,1723711867398,-500.0,0.00023916,7]
[334986740,1723711867409,-500.0,0.00023916,7]
[334986741,1723711867419,-500.0,0.00023916,7]
[334986742,1723711867429,-1249.29,0.00023916,7]
[334986743,1723711867438,-603.18,0.00023916,7]
[334986744,1723711867454,-500.0,0.00023916,7]
[334986745,1723711867464,-500.0,0.00023916,7]
[334986746,1723711867473,-1037.91,0.00023916,7]
[334986747,1723711867482,-500.0,0.00023916,7]
[334986748,1723711867492,-500.0,0.00023916,7]
[334986749,1723711867501,-500.0,0.00023916,7]
[334986750,1723711867510,-500.0,0.00023916,7]
[334986751,1723711867520,-500.0,0.00023916,7]
[334986752,1723711867530,-500.0,0.00023916,7]
[334986753,1723711867539,-1809.24,0.00023916,7]
[334986754,1723711867548,-500.0,0.00023916,7]
[334986755,1723711867558,-500.0,0.00023916,7]
[334986756,1723711867567,-706.73,0.00023916,7]
[334986757,1723711867579,-500.0,0.00023916,7]
[334986758,1723711867589,-500.0,0.00023917,7]
[334986759,1723711867598,-500.0,0.00023917,7]
[334986760,1723711867607,-500.0,0.00023917,7]
[334986761,1723711867617,-500.0,0.00023917,7]
[334986762,1723711867626,-500.0,0.00023917,7]
[334986763,1723711867635,-500.0,0.00023917,7]
[334986764,1723711867645,-881.8,0.00023917,7]
[334986765,1723711867654,-500.0,0.00023917,7]
[334986766,1723711867665,-500.0,0.00023917,7]
[334986767,1723711867674,-325.58179032,0.00023917,7]
[334986768,1723711867684,-500.0,0.00023917,7]
[334986769,1723711867694,-621.2345343,0.00023917,7]
[334986770,1723711867703,-621.28,0.00023917,7]
[334986771,1723711867712,-500.0,0.00023917,7]
[334986772,1723711867722,-617.12,0.00023917,7]
[334986773,1723711867732,-500.0,0.00023917,7]
[334986774,1723711867741,-500.0,0.00023917,7]
[334986775,1723711867750,-289.15952538,0.00023917,7]
[334986776,1723711867760,-240.24,0.00023917,7]
[334986777,1723711867769,-500.0,0.00023917,7]
[334986778,1723711867779,-500.0,0.00023917,7]
[334986779,1723711867789,-500.0,0.00023917,7]
[334986780,1723711867798,-500.0,0.00023917,7]
[334986781,1723711867808,-500.0,0.00023917,7]
[334986782,1723711867817,-500.0,0.00023917,7]
[334986783,1723711867827,-500.0,0.00023917,7]
[334986784,1723711867837,-246.8878341,0.00023917,7]
[334986785,1723711867846,-594.3631927,0.00023917,7]
[334986786,1723711867855,-500.0,0.00023917,7]
[334986787,1723711867865,-510.93439132,0.00023917,7]
[334986788,1723711867874,-157.17420157,0.00023917,7]
[334986789,1723711867884,-500.0,0.00023917,7]
[334986790,1723711867893,-500.0,0.00023917,7]
[334986791,1723711867903,-500.0,0.00023917,7]
[334986792,1723711867912,-500.0,0.00023917,7]
[334986793,1723711867921,-537.76951084,0.00023917,7]
[334986794,1723711867931,-500.0,0.00023917,7]
[334986795,1723711867940,-500.0,0.00023917,7]
[334986796,1723711867958,-500.0,0.00023917,7]
[334986797,1723711867971,-500.0,0.00023917,7]
[334986798,1723711867980,-500.0,0.00023917,7]
[334986799,1723711867990,-500.0,0.00023919,7]
[334986800,1723711868000,-3275.77,0.00023919,7]
[334986801,1723711868011,-500.0,0.00023919,7]
[334986802,1723711868150,-500.0,0.00023919,7]
[334986803,1723711868161,-500.0,0.00023919,7]
[334986804,1723711868171,-500.0,0.00023919,7]
[334986805,1723711868180,-500.0,0.00023919,7]
[334986806,1723711868189,-500.0,0.00023919,7]
[334986807,1723711868202,-500.0,0.00023919,7]
[334986808,1723711868212,-500.0,0.00023919,7]
[334986809,1723711868221,-500.0,0.00023919,7]
[334986810,1723711868231,-1345.06,0.00023919,7]
[334986811,1723711868240,-500.0,0.00023919,7]
[334986812,1723711868250,-500.0,0.00023919,7]
[334986813,1723711868261,-616.62,0.00023919,7]
[334986814,1723711868270,-500.0,0.00023919,7]
[334986815,1723711868279,-500.0,0.00023919,7]
[334986816,1723711868289,-500.0,0.00023919,7]
[334986817,1723711868298,-500.0,0.00023919,7]
[334986818,1723711868309,-409.33488019,0.00023919,7]
[334986819,1723711868318,-500.0,0.00023919,7]
[334986820,1723711868328,-500.0,0.00023919,7]
[334986821,1723711868339,-523.0,0.00023919,7]
[334986822,1723711868350,-2954.81,0.00023919,7]
[334986823,1723711868360,-2000.0,0.0002392,2]
[334986824,1723711868370,-1177.5,0.0002392,7]
[334986825,1723711868380,-500.0,0.0002392,7]
[334986826,1723711868390,-500.0,0.0002392,7]
[334986827,1723711868401,-500.0,0.0002392,7]
[334986828,1723711868411,-619.04,0.0002392,7]
[334986829,1723711868422,-500.0,0.0002392,7]
[334986830,1723711868432,-500.0,0.0002392,7]
[334986831,1723711868443,-500.0,0.0002392,7]
[334986832,1723711868453,-1130.53,0.0002392,7]
[334986833,1723711868464,-500.0,0.0002392,7]
[334986834,1723711868475,-500.0,0.0002392,7]
[334986835,1723711868485,-500.0,0.0002392,7]
[334986836,1723711868496,-500.0,0.0002392,7]
[334986837,1723711868505,-500.0,0.0002392,7]
[334986838,1723711868515,-500.0,0.0002392,7]
[334986839,1723711868524,-590.5695694,0.0002392,7]
[334986840,1723711868535,-500.0,0.0002392,7]
[334986841,1723711868544,-500.0,0.0002392,7]
[334986842,1723711868554,-500.0,0.0002392,7]
[334986843,1723711868564,-500.0,0.0002392,7]
[334986844,1723711868574,-500.0,0.0002392,7]
[334986845,1723711868584,-500.0,0.0002392,7]
[334986846,1723711868594,-500.0,0.0002392,7]
[334986847,1723711868604,-500.0,0.0002392,7]
[334986848,1723711868613,-4429.79,0.0002392,7]
[334986849,1723711868623,-512.17,0.0002392,7]
[334986850,1723711868634,-500.0,0.0002392,7]
[334986851,1723711868646,-1556.85,0.0002392,7]
[334986852,1723711868656,-500.0,0.0002392,7]
[334986853,1723711868668,-500.0,0.0002392,7]
[334986854,1723711868678,-1904.96,0.0002392,7]
[334986855,1723711868687,-500.0,0.0002392,7]
[334986856,1723711868697,-500.0,0.0002392,7]
[334986857,1723711868707,-500.0,0.0002392,7]
[334986858,1723711868716,-500.0,0.0002392,7]
[334986859,1723711868726,-500.0,0.0002392,7]
[334986860,1723711868735,-500.0,0.0002392,7]
[334986861,1723711868745,-500.0,0.0002392,7]
[334986862,1723711868755,-500.0,0.0002392,7]
[334986863,1723711868764,-500.0,0.0002392,7]
[334986864,1723711868774,-500.0,0.0002392,7]
[334986865,1723711868785,-500.0,0.0002392,7]
[334986866,1723711868795,-500.0,0.0002392,7]
[334986867,1723711868804,-876.52,0.0002392,7]
[334986868,1723711868813,-500.0,0.0002392,7]
[334986869,1723711868823,-500.0,0.0002392,7]
[334986870,1723711868833,-525.26,0.0002392,7]
[334986871,1723711868843,-1853.62,0.0002392,7]
[334986872,1723711868852,-565.24,0.0002392,7]
[334986873,1723711868861,-500.0,0.0002392,7]
[334986874,1723711868871,-500.0,0.0002392,7]
[334986875,1723711868881,-500.0,0.0002392,7]
[334986876,1723711868890,-1019.67,0.0002392,7]
[334986877,1723711868899,-920.87,0.0002392,7]
[334986878,1723711868909,-500.0,0.0002392,7]
[334986879,1723711868918,-936.26,0.0002392,2]
[334986880,1723711868928,-500.0,0.0002392,7]
[334986881,1723711868937,-738.9,0.0002392,7]
[334986882,1723711868947,-500.0,0.00023921,7]
[334986883,1723711868957,-500.0,0.00023921,7]
[334986884,1723711868970,-500.0,0.00023921,7]
[334986885,1723711868980,-500.0,0.00023921,7]
[334986886,1723711868989,-500.77255242,0.00023921,7]
[334986887,1723711868999,-501.26759128,0.00023921,7]
[334986888,1723711869009,-500.0,0.00023921,7]
[334986889,1723711869019,-500.0,0.00023921,7]
[334986890,1723711869029,-500.0,0.00023921,7]
[334986891,1723711869039,-500.0,0.00023921,7]
[334986892,1723711869049,-500.0,0.00023921,7]
[334986893,1723711869059,-500.0,0.00023921,7]
[334986894,1723711869068,-500.0,0.00023921,7]
[334986895,1723711869078,-515.37503503,0.00023921,7]
[334986896,1723711869087,-20000.0,0.00023921,2]
[334986897,1723711869097,-500.0,0.00023921,7]
[334986898,1723711869107,-500.0,0.00023921,7]
[334986899,1723711869116,-500.0,0.00023921,7]
[334986900,1723711869125,-500.0,0.00023921,7]
[334986901,1723711869136,-532.01183649,0.00023921,7]
[334986902,1723711869146,-512.5013909,0.00023921,7]
[334986903,1723711869156,-211.20650489,0.00023921,7]
[334986904,1723711869167,-168.01824212,0.00023921,7]
[334986905,1723711869177,-500.0,0.00023921,7]
[334986906,1723711869187,-507.2457851,0.00023921,7]
[334986907,1723711869197,-881.8,0.00023921,7]
[334986908,1723711869207,-773.43,0.00023921,7]
[334986909,1723711869216,-500.0,0.00023921,7]
[334986910,1723711869226,-508.97215129,0.00023921,7]
[334986911,1723711869236,-500.0,0.00023921,7]
[334986912,1723711869245,-500.0,0.00023921,7]
[334986913,1723711869255,-500.0,0.00023921,7]
[334986914,1723711869264,-519.03566761,0.00023921,7]
[334986915,1723711869274,-500.0,0.00023921,7]
[334986916,1723711869283,-516.68602653,0.00023921,7]
[334986917,1723711869293,-500.0,0.00023921,7]
[334986918,1723711869302,-500.0,0.00023921,7]
[334986919,1723711869312,-500.0,0.00023921,7]
[334986920,1723711869321,-500.0,0.00023921,7]